bitfinex/quotes_SOLUSD_20220109
["timestamp","ask_amount","ask_price","bid_price","bid_amount"]
[1641688517941,3.0,141.63,141.55,2.16345313]
[1641688518141,12.17581212,141.66,141.59,10.5922]
[1641688518342,41.48453191,141.66,141.59,10.5922]
[1641688518543,0.25,141.65,141.59,10.5922]
[1641688518943,0.25,141.65,141.6,0.26]
[1641688519342,0.25,141.65,141.6,10.5911]
[1641688520147,0.51,141.65,141.6,10.5911]
[1641688520547,3.51,141.65,141.58,10.5924]
[1641688521553,3.51,141.65,141.56,10.5941]
[1641688521765,3.51,141.65,141.56,10.8541]
[1641688522755,14.1028,141.65,141.56,10.8541]
[1641688522959,13.8428,141.65,141.56,10.8541]
[1641688523164,0.25,141.65,141.57,0.25]
[1641688523361,0.25,141.65,141.59,10.5918]
[1641688524061,0.25,141.65,141.6,0.26]
[1641688525085,0.25,141.65,141.6,10.851]
[1641688525285,0.25,141.65,141.6,10.591]
[1641688525486,0.25,141.65,141.61,0.26]
[1641688525886,0.25,141.65,141.59,0.26]
[1641688526087,0.25,141.65,141.61,10.5904]
[1641688526488,12.58671212,141.68,141.61,10.5904]
[1641688526685,1.99581212,141.68,141.62,0.26]
[1641688527288,10.18,141.72,141.6,3.0]
[1641688527289,1.99581212,141.7,141.6,3.0]
[1641688527487,1.99581212,141.7,141.61,0.51]
[1641688527891,1.99581212,141.7,141.61,19.54918416]
[1641688528089,3.0,141.69,141.61,0.26]
[1641688528489,3.0,141.69,141.6,3.0]
[1641688528690,0.25,141.68,141.59,22.8605]
[1641688528991,31.81075652,141.69,141.59,22.8605]
[1641688529390,3.51,141.68,141.59,22.8605]
[1641688529791,10.5914,141.67,141.59,33.4519]
[1641688529992,32.01030373,141.66,141.59,33.4519]
[1641688530294,32.01030373,141.66,141.56,119.8991]
[1641688530495,42.19030373,141.66,141.56,74.4146]
[1641688530894,10.5955,141.61,141.5,12.08219401]
[1641688531095,29.57414603,141.6,141.5,1.90219401]
[1641688531299,30.08414603,141.6,141.49,79.679]
[1641688532296,30.08414603,141.6,141.5,3.26]
[1641688532897,30.08414603,141.6,141.51,10.5979]
[1641688532898,10.5988,141.57,141.51,10.5979]
[1641688533099,10.5988,141.57,141.5,3.26]
[1641688534100,3.0,141.56,141.5,3.26]
[1641688534298,13.5985,141.56,141.5,13.8588]
[1641688535099,13.5985,141.56,141.45,60.81109401]
[1641688535299,13.5985,141.56,141.44,1.90219401]
[1641688535300,0.51,141.55,141.44,1.90219401]
[1641688535501,0.51,141.55,141.44,12.50529401]
[1641688535502,10.6031,141.5,141.44,12.50529401]
[1641688535702,10.6031,141.5,141.44,1.90219401]
[1641688535902,3.25,141.49,141.41,72.8452]
[1641688536502,3.0,141.51,141.41,72.8452]
[1641688536905,10.6037,141.49,141.43,10.6033]
[1641688537402,10.6037,141.49,141.44,0.51]
[1641688537902,10.6037,141.49,141.44,0.25]
[1641688538802,10.6037,141.49,141.44,10.8531]
[1641688539102,10.18,141.55,141.44,10.8531]
[1641688539309,1.99581212,141.58,141.45,15.09345313]
[1641688539704,1.99581212,141.58,141.46,24.61603247]
[1641688539906,12.59101212,141.6,141.53,10.5951]
[1641688540303,1.99581212,141.6,141.53,10.5951]
[1641688540706,1.99581212,141.6,141.54,0.25]
[1641688541106,24.22406613,141.61,141.54,0.25]
[1641688541505,0.25,141.6,141.54,0.25]
[1641688541908,0.25,141.6,141.56,10.5942]
[1641688542113,10.5946,141.61,141.56,10.5942]
[1641688542306,12.17581212,141.65,141.57,0.26]
[1641688542605,12.17581212,141.65,141.57,6.472]
[1641688542606,3.0,141.64,141.57,6.472]
[1641688542806,1.99581212,141.65,141.57,6.472]
[1641688543007,1.99581212,141.65,141.58,3.25]
[1641688543408,1.99581212,141.65,141.59,0.26]
[1641688543606,32.01378049,141.68,141.62,10.5894]
[1641688543607,30.02970581,141.68,141.62,10.5894]
[1641688543808,0.25,141.64,141.62,10.5894]
[1641688544009,3.25,141.67,141.62,10.5894]
[1641688544607,13.84,141.67,141.59,0.26]
[1641688544808,0.26,141.66,141.59,0.26]
[1641688545007,0.26,141.66,141.58,0.26]
[1641688545207,0.26,141.66,141.53,23.7622]
[1641688545611,35.5719,141.66,141.56,10.5932]
[1641688546008,3.25,141.65,141.56,10.5932]
[1641688546210,29.09175422,141.65,141.56,10.5932]
[1641688546509,0.26,141.64,141.56,10.5932]
[1641688546708,10.5938,141.62,141.56,10.5932]
[1641688546910,0.51,141.61,141.56,10.5932]
[1641688547509,0.26,141.64,141.56,10.5932]
[1641688547708,0.51,141.64,141.56,10.5932]
[1641688548110,0.51,141.64,141.54,20.7747]
[1641688548310,0.51,141.64,141.55,0.26]
[1641688548509,0.51,141.64,141.53,23.7622]
[1641688548709,0.51,141.64,141.48,97.6166]
[1641688548710,10.69,141.64,141.49,10.18]
[1641688549110,10.5981,141.56,141.49,10.18]
[1641688549309,10.5981,141.56,141.5,10.5979]
[1641688549709,35.327,141.6,141.5,10.5979]
[1641688549911,3.0,141.63,141.51,0.25]
[1641688550111,0.25,141.59,141.5,0.25]
[1641688550313,0.25,141.59,141.54,10.5951]
[1641688550714,29.06903996,141.59,141.55,0.26]
[1641688551215,0.25,141.59,141.55,0.26]
[1641688551417,0.51,141.62,141.52,0.25]
[1641688551815,0.51,141.62,141.51,0.26]
[1641688552019,0.51,141.62,141.52,0.25]
[1641688552217,23.27380122,141.61,141.52,0.25]
[1641688552418,10.5963,141.59,141.52,10.8463]
[1641688552819,0.25,141.58,141.53,0.26]
[1641688553919,10.5966,141.58,141.53,0.26]
[1641688554318,3.51,141.6,141.51,0.51]
[1641688554520,0.25,141.6,141.51,7.93423281]
[1641688554718,23.27380122,141.61,141.51,7.93423281]
[1641688554920,0.25,141.6,141.51,7.93423281]
[1641688555624,12.17581212,141.64,141.52,1.65345313]
[1641688555825,10.5937,141.62,141.52,1.65345313]
[1641688556024,10.5937,141.62,141.53,3.51]
[1641688556324,3.0,141.61,141.53,3.51]
[1641688557025,13.5944,141.61,141.53,0.51]
[1641688557824,13.5944,141.61,141.55,10.5939]
[1641688558248,13.5944,141.61,141.56,0.26]
[1641688558749,1.99581212,141.66,141.56,8.847]
[1641688558947,1.99581212,141.66,141.57,0.51]
[1641688559347,1.99581212,141.66,141.57,2.16345313]
[1641688559550,1.99581212,141.66,141.58,3.0]
[1641688559749,33.44074132,141.66,141.58,3.0]
[1641688559949,33.44074132,141.66,141.62,10.588]
[1641688560151,31.4449292,141.66,141.62,10.588]
[1641688560351,31.4449292,141.66,141.63,0.26]
[1641688560653,31.4449292,141.66,141.59,0.25]
[1641688560849,31.4449292,141.66,141.62,10.5874]
[1641688561049,3.0,141.65,141.55,78.9361]
[1641688561252,3.26,141.65,141.55,78.9361]
[1641688561554,0.25,141.64,141.57,0.26]
[1641688561851,0.25,141.64,141.55,78.9361]
[1641688562852,10.8427,141.64,141.55,78.9361]
[1641688563052,10.8427,141.64,141.57,0.25]
[1641688563253,27.79708883,141.63,141.56,20.7725]
[1641688563454,0.25,141.62,141.54,48.2971]
[1641688563857,27.79708883,141.63,141.54,48.2971]
[1641688564557,3.0,141.65,141.54,48.2971]
[1641688564758,10.5932,141.63,141.55,0.51]
[1641688564956,0.51,141.64,141.55,0.51]
[1641688565158,3.0,141.65,141.55,0.51]
[1641688565358,3.0,141.65,141.55,13.69]
[1641688565556,24.09009573,141.66,141.55,13.69]
[1641688566161,24.09009573,141.66,141.55,15.34345313]
[1641688566358,0.25,141.65,141.55,15.34345313]
[1641688566760,10.8415,141.65,141.58,10.5915]
[1641688566960,10.8415,141.65,141.59,0.26]
[1641688567362,3.0,141.67,141.59,0.26]
[1641688567760,0.25,141.66,141.57,3.51]
[1641688567960,0.25,141.66,141.59,10.5909]
[1641688568363,0.25,141.66,141.6,0.51]
[1641688568961,0.25,141.66,141.6,0.25]
[1641688569162,12.58491212,141.68,141.6,10.8403]
[1641688569365,3.9798868,141.72,141.61,10.18]
[1641688569366,1.99581212,141.69,141.61,10.18]
[1641688569667,1.99581212,141.69,141.61,13.44]
[1641688569862,1.99581212,141.69,141.62,1.90345313]
[1641688570065,1.99581212,141.69,141.63,17.17191027]
[1641688570264,1.99581212,141.69,141.66,10.5851]
[1641688570465,12.58121212,141.73,141.67,0.26]
[1641688570863,3.25,141.72,141.67,0.26]
[1641688571065,0.25,141.72,141.65,0.51]
[1641688571266,0.25,141.72,141.67,10.5854]
[1641688572066,1.99581212,141.75,141.67,10.5854]
[1641688572268,1.99581212,141.75,141.68,0.26]
[1641688572466,1.99581212,141.74,141.68,0.51]
[1641688572764,1.99581212,141.74,141.68,3.51]
[1641688572965,1.99581212,141.74,141.69,0.26]
[1641688573367,1.99581212,141.78,141.69,3.26]
[1641688573568,10.5823,141.77,141.72,10.5821]
[1641688574067,3.0,141.76,141.72,10.5821]
[1641688574668,13.5817,141.78,141.73,0.51]
[1641688574870,13.5817,141.78,141.73,10.8313]
[1641688575068,3.0,141.78,141.73,10.8313]
[1641688575475,28.0647306,141.8,141.73,10.5813]
[1641688575669,10.5822,141.78,141.69,38.5309]
[1641688575969,10.5822,141.78,141.7,0.25]
[1641688576168,3.0,141.77,141.7,0.25]
[1641688576369,3.0,141.77,141.7,35.5191]
[1641688576571,3.0,141.77,141.71,3.0]
[1641688576771,3.0,141.77,141.71,3.26]
[1641688576970,0.35432211,141.8,141.72,0.51]
[1641688577870,10.93452211,141.8,141.72,0.25]
[1641688578071,3.0,141.79,141.72,0.25]
[1641688578271,3.25,141.79,141.72,0.25]
[1641688578870,0.25,141.79,141.71,19.22759131]
[1641688579274,0.86432211,141.8,141.71,19.22759131]
[1641688579472,10.582,141.78,141.73,10.5815]
[1641688579874,0.25,141.77,141.73,10.5815]
[1641688580876,0.86432211,141.8,141.73,10.5815]
[1641688581279,10.5823,141.77,141.72,10.5824]
[1641688581475,10.5823,141.77,141.73,0.26]
[1641688582080,10.5823,141.77,141.72,10.5824]
[1641688582277,10.5823,141.77,141.71,10.5831]
[1641688582477,10.5841,141.75,141.69,24.1956]
[1641688582680,10.5841,141.75,141.68,22.8005]
[1641688583281,10.5841,141.75,141.7,10.5835]
[1641688583479,0.25,141.76,141.69,19.2008075]
[1641688583880,0.26,141.78,141.7,0.26]
[1641688584082,3.26,141.78,141.7,0.26]
[1641688584304,3.26,141.78,141.71,10.5833]
[1641688584901,10.5839,141.75,141.66,45.461]
[1641688585102,10.5839,141.75,141.63,10.7393]
[1641688585406,28.22042796,141.74,141.62,22.9962]
[1641688586402,35.2964,141.72,141.62,33.5852]
[1641688586602,3.0,141.71,141.62,33.5852]
[1641688586804,3.25,141.71,141.62,33.5852]
[1641688587203,3.25,141.71,141.62,10.589]
[1641688587404,0.01,141.74,141.62,10.589]
[1641688587607,10.5881,141.7,141.62,10.589]
[1641688588009,10.5881,141.7,141.63,0.26]
[1641688588208,10.5881,141.7,141.63,11.0983]
[1641688588408,10.5881,141.7,141.64,0.51]
[1641688588606,3.0,141.75,141.64,0.51]
[1641688588807,13.18,141.75,141.64,0.51]
[1641688589006,10.5872,141.71,141.64,0.25]
[1641688589209,10.5872,141.71,141.62,38.5384]
[1641688589407,0.25,141.7,141.62,3.25]
[1641688589608,30.04488881,141.7,141.62,0.25]
[1641688590008,10.5898,141.67,141.62,0.25]
[1641688590408,0.25,141.66,141.61,10.5901]
[1641688590615,3.25,141.66,141.58,113.242]
[1641688590810,3.25,141.66,141.58,10.18]
[1641688591010,0.25,141.66,141.58,10.18]
[1641688591410,10.841,141.66,141.58,10.18]
[1641688591612,10.591,141.66,141.58,10.18]
[1641688591811,0.25,141.65,141.58,10.18]
[1641688592012,10.18,141.64,141.55,8.16]
[1641688592412,10.5971,141.6,141.55,8.16]
[1641688592811,0.25,141.59,141.55,8.16]
[1641688593011,32.73902886,141.62,141.55,8.16]
[1641688593215,10.18,141.62,141.55,8.16]
[1641688593413,3.25,141.61,141.55,8.16]
[1641688593615,10.5958,141.6,141.55,8.16]
[1641688594012,0.25,141.59,141.55,8.16]
[1641688594811,10.8458,141.59,141.55,8.16]
[1641688595212,10.8458,141.59,141.53,10.595]
[1641688595416,10.8458,141.59,141.54,0.26]
[1641688596014,10.5952,141.6,141.54,11.105]
[1641688596217,24.4377,141.71,141.55,3.0]
[1641688596416,10.18,141.66,141.56,0.25]
[1641688597015,23.62754791,141.68,141.56,3.59962009]
[1641688597215,23.62754791,141.68,141.61,10.5877]
[1641688597415,23.62754791,141.68,141.62,0.26]
[1641688597916,23.62754791,141.68,141.61,0.26]
[1641688598317,23.62754791,141.68,141.62,10.5886]
[1641688598917,0.25,141.67,141.62,10.5886]
[1641688599717,0.25,141.67,141.61,10.8498]
[1641688600119,0.25,141.67,141.61,0.26]
[1641688600319,3.25,141.67,141.61,0.26]
[1641688600519,3.25,141.67,141.58,3.51]
[1641688600923,13.8398,141.67,141.6,10.5902]
[1641688601123,10.8398,141.67,141.6,10.5902]
[1641688601321,10.8398,141.67,141.61,0.26]
[1641688601521,10.8398,141.67,141.58,3.51]
[1641688601721,0.25,141.67,141.58,3.51]
[1641688601922,0.25,141.67,141.58,35.8073]
[1641688602121,0.25,141.67,141.62,10.5892]
[1641688604523,10.8397,141.67,141.62,10.5892]
[1641688605325,0.25,141.67,141.62,10.5892]
[1641688605525,0.51,141.67,141.62,10.5892]
[1641688605928,10.18,141.69,141.62,10.5892]
[1641688606527,10.18,141.69,141.64,10.5878]
[1641688606726,10.5875,141.7,141.64,10.5878]
[1641688606925,0.25,141.69,141.64,10.5878]
[1641688607527,13.43,141.69,141.64,10.5878]
[1641688607928,0.26,141.68,141.64,10.5878]
[1641688608129,13.43,141.69,141.64,10.5878]
[1641688608331,10.43,141.69,141.64,10.5878]
[1641688608532,0.25,141.69,141.64,16.4328]
[1641688608728,0.25,141.71,141.67,10.5825]
[1641688608928,3.25,141.71,141.67,16.1825]
[1641688609329,1.99581212,141.74,141.67,16.1825]
[1641688609330,1.99581212,141.74,141.68,35.5282]
[1641688609533,1.99581212,141.74,141.68,0.26]
[1641688609930,1.99581212,141.74,141.71,10.5804]
[1641688610131,6.06002899,141.73,141.71,10.5804]
[1641688611353,1.99581212,141.76,141.73,3.03219997]
[1641688611555,1.99581212,141.76,141.74,10.5743]
[1641688611757,1.99581212,141.76,141.74,11.0843]
[1641688612358,2.35013423,141.8,141.75,3.03219997]
[1641688612756,2.35013423,141.8,141.77,10.5729]
[1641688612957,3.9798868,141.84,141.77,10.5729]
[1641688612958,3.9798868,141.84,141.79,38.0]
[1641688613365,3.9798868,141.84,141.8,0.51]
[1641688613561,3.9798868,141.86,141.81,22.06412563]
[1641688613760,3.9798868,141.86,141.82,35.2238]
[1641688613958,3.9798868,141.86,141.8,3.51]
[1641688614159,3.9798868,141.86,141.8,0.25]
[1641688614360,3.9798868,141.86,141.74,0.25]
[1641688614561,3.9798868,141.86,141.74,3.51]
[1641688614761,3.1841271,141.88,141.77,35.2409]
[1641688615060,28.22433276,141.87,141.74,3.26]
[1641688615261,10.18,141.86,141.74,0.26]
[1641688615460,0.51,141.85,141.74,0.26]
[1641688615660,20.7576,141.84,141.74,10.8377]
[1641688615862,0.25,141.83,141.74,10.8377]
[1641688616163,14.39195943,141.88,141.74,10.8377]
[1641688616164,10.18,141.86,141.75,24.68488593]
[1641688616364,17.3440139,141.88,141.75,24.93488593]
[1641688616561,3.0,141.87,141.76,0.26]
[1641688616762,3.25,141.87,141.76,0.26]
[1641688617763,3.25,141.87,141.81,10.5714]
[1641688617961,3.25,141.87,141.82,0.26]
[1641688618163,3.25,141.87,141.78,5.14744215]
[1641688618365,3.25,141.87,141.79,0.25]
[1641688618563,3.25,141.87,141.79,3.51]
[1641688618763,3.25,141.87,141.79,3.26]
[1641688618965,3.25,141.87,141.79,0.26]
[1641688619362,3.25,141.87,141.79,0.51]
[1641688619564,2.75,141.87,141.79,0.51]
[1641688619765,2.75,141.87,141.79,0.26]
[1641688620366,2.5,141.87,141.79,0.51]
[1641688620967,2.5,141.87,141.79,11.084]
[1641688621170,10.18,141.91,141.79,11.084]
[1641688621569,3.0,141.9,141.79,11.084]
[1641688621866,3.51,141.9,141.79,11.084]
[1641688622066,3.51,141.9,141.79,10.824]
[1641688623371,13.5831,141.9,141.8,0.26]
[1641688623570,13.5831,141.9,141.8,10.8328]
[1641688623768,13.5831,141.9,141.81,21.68488593]
[1641688623969,13.5831,141.9,141.81,21.94488593]
[1641688624871,13.3231,141.9,141.81,21.94488593]
[1641688625072,13.3231,141.9,141.81,32.51738593]
[1641688625572,2.75,141.9,141.81,32.25738593]
[1641688626472,2.5,141.9,141.82,0.25]
[1641688627072,2.5,141.9,141.82,0.51]
[1641688627273,10.18,141.93,141.82,11.0816]
[1641688627475,10.18,141.93,141.82,15.73505313]
[1641688627773,10.18,141.93,141.82,14.0816]
[1641688628174,10.18,141.93,141.82,13.8316]
[1641688628377,11.83345313,141.93,141.82,10.5716]
[1641688628874,11.0816,141.92,141.82,10.5716]
[1641688629876,11.0816,141.92,141.83,0.26]
[1641688630676,11.0816,141.92,141.82,0.26]
[1641688631078,0.51,141.92,141.82,0.26]
[1641688631475,0.51,141.92,141.82,11.0815]
[1641688631676,0.51,141.92,141.82,0.25]
[1641688632078,0.25,141.92,141.82,0.25]
[1641688632277,20.7508,141.93,141.82,0.25]
[1641688632278,20.7508,141.93,141.82,3.25]
[1641688632879,10.18,141.93,141.83,0.26]
[1641688633078,9.68,141.93,141.83,0.26]
[1641688633680,0.25,141.92,141.83,0.26]
[1641688633878,0.25,141.92,141.82,0.51]
[1641688634178,10.8216,141.92,141.82,0.51]
[1641688634383,4.90345313,141.92,141.82,0.51]
[1641688634579,4.90345313,141.92,141.82,0.26]
[1641688634778,0.26,141.91,141.82,0.26]
[1641688634979,0.26,141.91,141.82,10.8317]
[1641688635178,3.0,141.92,141.82,10.8317]
[1641688635981,0.25,141.91,141.82,10.8317]
[1641688636184,0.25,141.91,141.83,0.25]
[1641688636381,0.25,141.91,141.85,10.5696]
[1641688636786,0.25,141.91,141.86,0.26]
[1641688636986,0.51,141.94,141.86,0.26]
[1641688637186,3.0,141.94,141.86,0.26]
[1641688637384,3.0,141.94,141.83,5.16345313]
[1641688637586,105.2696,141.95,141.83,5.16345313]
[1641688637786,10.5686,141.96,141.86,10.569]
[1641688637987,10.5686,141.96,141.87,3.51]
[1641688638285,10.5686,141.96,141.87,5.65744215]
[1641688638885,0.25,141.95,141.87,5.40744215]
[1641688639085,3.25,141.95,141.87,5.40744215]
[1641688639285,3.0,141.95,141.87,5.40744215]
[1641688639487,3.0,141.95,141.87,15.97594215]
[1641688640088,3.0,141.95,141.88,3.25]
[1641688640289,3.0,141.95,141.88,0.25]
[1641688640488,3.0,141.97,141.88,0.25]
[1641688640687,3.25,141.97,141.88,0.25]
[1641688640888,0.25,141.97,141.88,0.25]
[1641688641090,0.25,141.97,141.88,10.8178]
[1641688641289,0.25,141.97,141.88,20.6858]
[1641688641490,0.25,141.97,141.89,0.26]
[1641688642593,10.8163,141.99,141.91,10.5653]
[1641688642794,10.8163,141.99,141.89,74.5299]
[1641688643093,10.8163,141.99,141.9,0.25]
[1641688643296,10.8163,141.99,141.89,0.26]
[1641688643495,3.0,141.98,141.89,0.26]
[1641688643697,3.0,141.98,141.89,10.8269]
[1641688643895,0.25,141.97,141.9,0.25]
[1641688644722,0.25,141.97,141.89,0.26]
[1641688644921,3.0,141.99,141.89,0.51]
[1641688644922,28.33007169,141.98,141.89,0.51]
[1641688645121,3.0,141.97,141.89,0.51]
[1641688645523,0.25,141.96,141.89,0.51]
[1641688645722,0.25,141.96,141.87,10.18]
[1641688645923,0.51,141.96,141.84,35.2267]
[1641688646122,0.51,141.96,141.81,32.888]
[1641688646725,0.51,141.96,141.82,21.75923517]
[1641688646924,10.18,141.95,141.81,32.888]
[1641688647125,18.296,141.95,141.79,101.0313]
[1641688647326,5.16345313,141.94,141.74,87.15]
[1641688647524,10.18,141.93,141.75,46.9394]
[1641688647926,3.51,141.92,141.76,26.13591104]
[1641688648125,10.5765,141.86,141.77,10.5753]
[1641688648325,10.5765,141.86,141.77,13.5753]
[1641688648729,10.5765,141.86,141.78,0.26]
[1641688649025,113.2743,141.9,141.78,0.26]
[1641688649225,3.25,141.89,141.78,0.26]
[1641688649427,10.18,141.9,141.78,12.48865313]
[1641688649627,3.0,141.92,141.79,3.0]
[1641688649828,3.0,141.92,141.79,26.32]
[1641688650027,10.18,141.93,141.8,0.51]
[1641688650227,34.09221668,141.93,141.8,0.51]
[1641688650527,10.5745,141.88,141.8,0.51]
[1641688651429,34.09221668,141.93,141.8,0.51]
[1641688651627,10.5736,141.89,141.8,10.8339]
[1641688651828,10.18,141.91,141.8,0.26]
[1641688652030,0.25,141.88,141.8,0.26]
[1641688652231,0.25,141.88,141.78,0.26]
[1641688652830,10.5759,141.86,141.78,0.26]
[1641688653030,0.25,141.88,141.78,0.51]
[1641688653234,14.1598868,141.91,141.78,5.16345313]
[1641688653429,14.1598868,141.91,141.78,28.13105313]
[1641688653830,10.5752,141.87,141.78,37.0532]
[1641688654029,0.26,141.9,141.78,34.0532]
[1641688654431,3.26,141.9,141.78,34.0532]
[1641688654631,3.51,141.9,141.78,34.0532]
[1641688654932,10.5764,141.85,141.78,23.4776]
[1641688655130,3.51,141.9,141.78,23.2276]
[1641688655930,0.51,141.9,141.78,23.2276]
[1641688656130,0.51,141.9,141.82,10.5721]
[1641688656333,0.51,141.9,141.79,3.0]
[1641688656534,0.51,141.9,141.8,0.51]
[1641688656732,0.51,141.9,141.8,0.26]
[1641688657535,10.8327,141.9,141.8,10.5739]
[1641688657933,10.8327,141.9,141.81,0.26]
[1641688658533,10.8327,141.9,141.79,0.26]
[1641688658940,3.25,141.89,141.79,0.26]
[1641688659140,10.5753,141.87,141.79,10.835]
[1641688659636,3.25,141.89,141.79,10.835]
[1641688659835,0.25,141.89,141.79,10.835]
[1641688660236,10.8236,141.89,141.79,10.835]
[1641688660438,10.8236,141.89,141.79,0.26]
[1641688660643,3.0,141.88,141.79,0.26]
[1641688660839,29.47069936,141.87,141.79,0.26]
[1641688661041,29.72069936,141.87,141.79,0.26]
[1641688661241,0.25,141.87,141.79,0.26]
[1641688661540,10.5761,141.86,141.79,0.26]
[1641688661941,0.25,141.87,141.79,10.8351]
[1641688662141,0.25,141.88,141.79,10.8351]
[1641688662976,0.25,141.88,141.8,0.25]
[1641688663343,0.25,141.88,141.79,0.26]
[1641688663643,0.25,141.88,141.79,0.51]
[1641688663842,10.5768,141.85,141.79,0.51]
[1641688664644,0.25,141.88,141.79,0.51]
[1641688664843,3.25,141.88,141.79,0.51]
[1641688665742,3.25,141.88,141.77,10.18]
[1641688665743,10.5758,141.86,141.77,10.18]
[1641688665944,0.51,141.85,141.78,0.25]
[1641688666143,0.51,141.85,141.76,77.7385]
[1641688666344,3.51,141.85,141.73,13.21219997]
[1641688666545,3.25,141.85,141.73,13.21219997]
[1641688666745,10.5821,141.79,141.73,13.21219997]
[1641688666944,10.0821,141.79,141.74,26.11844268]
[1641688667347,10.0821,141.79,141.75,0.26]
[1641688667749,10.0821,141.79,141.73,3.03219997]
[1641688667946,10.5837,141.76,141.73,3.03219997]
[1641688668147,3.03219997,141.75,141.73,3.03219997]
[1641688668849,78.9145,141.83,141.74,3.03219997]
[1641688668850,89.0945,141.83,141.74,3.03219997]
[1641688669050,10.5853,141.79,141.74,3.03219997]
[1641688669254,10.5853,141.79,141.73,3.03219997]
[1641688669455,3.51,141.78,141.73,3.03219997]
[1641688669855,30.18101612,141.78,141.73,3.03219997]
[1641688670055,10.5883,141.76,141.73,3.03219997]
[1641688670885,0.25,141.75,141.73,3.03219997]
[1641688671084,3.03219997,141.74,141.73,3.03219997]
[1641688671384,3.03219997,141.74,141.73,3.29219997]
[1641688672687,60.08838288,141.81,141.73,6.57439994]
[1641688672889,45.449,141.83,141.74,0.51]
[1641688673087,3.0,141.82,141.74,0.51]
[1641688673388,3.0,141.82,141.74,0.26]
[1641688673789,29.23124296,141.81,141.74,0.51]
[1641688674394,0.25,141.8,141.74,0.51]
[1641688674792,10.8303,141.8,141.74,0.25]
[1641688674994,13.8303,141.8,141.74,0.25]
[1641688675894,13.8303,141.8,141.73,3.03219997]
[1641688676296,0.26,141.79,141.73,3.03219997]
[1641688676497,10.5833,141.76,141.73,3.03219997]
[1641688676697,3.03219997,141.75,141.73,3.03219997]
[1641688676898,3.28219997,141.75,141.73,3.03219997]
[1641688677797,3.03219997,141.75,141.73,3.03219997]
[1641688677998,3.03219997,141.75,141.74,26.26]
[1641688679398,29.23124296,141.81,141.74,29.29219997]
[1641688679599,3.0,141.8,141.74,29.29219997]
[1641688679800,3.25,141.8,141.74,29.29219997]
[1641688680002,10.5818,141.78,141.74,29.29219997]
[1641688680400,3.25,141.8,141.74,29.29219997]
[1641688680604,10.18,141.85,141.74,29.29219997]
[1641688680800,82.6455,141.87,141.78,10.577]
[1641688680999,10.577,141.85,141.79,0.51]
[1641688681200,91.69801454,141.89,141.79,0.51]
[1641688681600,23.28616455,141.88,141.79,0.51]
[1641688682401,10.5751,141.87,141.8,10.5751]
[1641688682899,10.5751,141.87,141.81,0.51]
[1641688683303,10.5751,141.87,141.81,0.26]
[1641688683500,10.5751,141.87,141.79,0.51]